[Event "XIX Najdorf Memorial 2019"]
[Site "Warsaw"]
[Date "2019.07.08"]
[Round "3.11"]
[White "Sliwicki, Damian"]
[Black "Roseneck, Jonas"]
[Result "0-1"]
[ECO "B53"]
[WhiteElo "2232"]
[BlackElo "2398"]
[Annotator "NA"]
[PlyCount "84"]
[EventDate "2019.07.06"]
[EventType "swiss"]
[EventCountry "POL"]
[SourceTitle "playchess.com"]
[Source "ChessBase"]
[SourceQuality "1"]
[TimeControl "40/5400+30:1800+30"]

1. e4 {[%emt 0:00:00]} c5 {[%emt 0:00:00]} 2. Nf3 {[%emt 0:00:00]} d6 {[%emt 0:00:00]} 3. d4 {[%emt 0:00:00]} cxd4 {[%emt 0:00:00]} 4. Qxd4 {[%emt 0:00:00]} Nc6 {[%emt 0:00:00]} 5. Bb5 {[%emt 0:00:01]} Bd7 {[%emt 0:00:00]} 6. Bxc6 {[%emt 0:00:07]} Bxc6 {[%emt 0:00:00]} 7. Nc3 {[%emt 0:00:09]} Nf6 {[%emt 0:00:00]} 8. Bg5 {[%emt 0:00:05]} e6 {[%emt 0:00:00]} 9. O-O-O {[%emt 0:00:07]} Be7 {[%emt 0:00:00]} 10. Qd3 {[%emt 0:00:38]} Qa5 {[%emt 0:01:10]} 11. h4 {[%emt 0:00:14]} h6 {[%emt 0:00:11]} 12. Bd2 {[%emt 0:01:31]} Qa6 {[%emt 0:00:21]} 13. Qxa6 {[%emt 0:00:11]} bxa6 {[%emt 0:00:02]} 14. Rhe1 {[%emt 0:00:18]} Ng4 {[%emt 0:01:09]} 15. Re2 {[%emt 0:00:57]} O-O {[%emt 0:00:13]} 16. Nd4 {[%emt 0:06:11]} Bd7 {[%emt 0:00:57]} 17. f3 {[%emt 0:05:07]} Ne5 {[%emt 0:00:01]} 18. Be1 {[%emt 0:00:16]} Rfc8 {[%emt 0:05:31]} 19. Nb3 {[%emt 0:02:26]} Rab8 {[%emt 0:08:54]} 20. Bf2 {[%emt 0:02:20]} Nc4 {[%emt 0:15:14]} 21. e5 {[%emt 0:21:33]} d5 {[%emt 0:20:18]} 22. Rh1 {[%emt 0:13:45]} a5 {[%emt 0:05:16]} 23. Nd1 {[%emt 0:05:34]} f6 {[%emt 0:14:20]} 24. Bxa7 {[%emt 0:04:07]} Rb7 {[%emt 0:01:13]} 25. Bd4 {[%emt 0:05:39]} fxe5 {[%emt 0:06:53]} 26. Bxe5 {[%emt 0:08:13]} Nxe5 {[%emt 0:00:47]} 27. Rxe5 {[%emt 0:00:07]} a4 {[%emt 0:00:27]} 28. Nd2 {[%emt 0:02:03]} Bf6 {[%emt 0:01:53]} 29. f4 {[%emt 0:01:11]} Bxe5 {[%emt 0:00:59]} 30. fxe5 {[%emt 0:00:03]} Be8 {[%emt 0:02:02]} 31. Rh3 {[%emt 0:06:00]} Bg6 {[%emt 0:02:02]} 32. c3 {[%emt 0:00:05]} d4 {[%emt 0:02:25]} 33. c4 {[%emt 0:10:54]} Rc5 {[%emt 0:02:29]} 34. Ra3 {[%emt 0:02:15]} Rb4 {[%emt 0:02:02]} 35. Nf2 {[%emt 0:04:27]} Rxe5 {[%emt 0:00:33]} 36. Nd3 {[%emt 0:00:31]} Re3 37. Nf2 {[%emt 0:00:01]} Re1+ {[%emt 0:03:05]} 38. Nd1 e5 {[%emt 0:01:45]} 39. Rg3 {[%emt 0:01:08]} Bh5 {[%emt 0:00:51]} 40. Nf3 {[%emt 0:00:00]} Rxc4+ {[%emt 0:00:00]} 41. Kd2 {[%emt 0:00:29]} Rxd1+ {[%emt 0:01:17]} 42. Kxd1 {[%emt 0:01:12]} e4 {[%emt 0:00:03]} 0-1

[Event "XIX Najdorf Memorial 2019"]
[Site "Warsaw"]
[Date "2019.07.08"]
[Round "3.12"]
[White "Bernadskiy, Vitaliy"]
[Black "Baum, Jonasz"]
[Result "1/2-1/2"]
[ECO "B38"]
[WhiteElo "2594"]
[BlackElo "2308"]
[Annotator "RC"]
[PlyCount "126"]
[EventDate "2019.07.06"]
[EventType "swiss"]
[EventCountry "POL"]
[SourceTitle "playchess.com"]
[Source "ChessBase"]
[SourceQuality "1"]
[TimeControl "40/5400+30:1800+30"]

1. c4 {[%emt 0:00:00]} c5 {[%emt 0:00:00]} 2. Nf3 {[%emt 0:00:00]} g6 {[%emt 0:00:00]} 3. d4 {[%emt 0:00:23]} cxd4 {[%emt 0:00:06]} 4. Nxd4 {[%emt 0:00:03]} Bg7 {[%emt 0:00:06]} 5. e4 {[%emt 0:00:15]} Nc6 {[%emt 0:00:14]} 6. Be3 {[%emt 0:00:43]} Nf6 {[%emt 0:00:05]} 7. Nc3 {[%emt 0:00:07]} O-O {[%emt 0:00:06]} 8. Be2 {[%emt 0:00:34]} d6 {[%emt 0:00:05]} 9. O-O {[%emt 0:00:12]} Nxd4 {[%emt 0:00:05]} 10. Bxd4 {[%emt 0:00:03]} Bd7 {[%emt 0:00:08]} 11. Qd3 {[%emt 0:01:53]} a5 {[%emt 0:00:30]} 12. c5 {[%emt 0:06:45]} dxc5 {[%emt 0:07:24]} 13. Bxc5 {[%emt 0:00:06]} Bc6 {[%emt 0:00:28]} 14. Qe3 {[%emt 0:00:13]} Qc7 {[%emt 0:09:06]} 15. Rac1 {[%emt 0:02:13]} Rfe8 {[%emt 0:03:12]} 16. Rfd1 {[%emt 0:02:55]} Nd7 {[%emt 0:04:51]} 17. Nb5 {[%emt 0:02:14]} Qb8 {[%emt 0:00:35]} 18. Ba7 {[%emt 0:03:35]} Qe5 {[%emt 0:02:29]} 19. Bd4 {[%emt 0:01:46]} Qb8 {[%emt 0:00:32]} 20. Bxg7 {[%emt 0:11:49]} Kxg7 {[%emt 0:00:10]} 21. Nd4 {[%emt 0:15:59]} Rd8 {[%emt 0:04:16]} 22. Qg5 {[%emt 0:05:31]} Qe5 {[%emt 0:02:11]} 23. Qxe5+ {[%emt 0:01:23]} Nxe5 {[%emt 0:00:02]} 24. f4 {[%emt 0:00:11]} Nd7 {[%emt 0:00:08]} 25. Nxc6 {[%emt 0:00:17]} bxc6 {[%emt 0:00:01]} 26. Rxc6 {[%emt 0:00:18]} Nf6 {[%emt 0:00:53]} 27. Rxd8 {[%emt 0:02:20]} Rxd8 {[%emt 0:00:05]} 28. Bf3 {[%emt 0:00:02]} Rd4 {[%emt 0:06:17]} 29. Rc5 {[%emt 0:09:35]} a4 {[%emt 0:15:35]} 30. e5 {[%emt 0:00:56]} Ne4 {[%emt 0:00:16]} 31. Rc2 {[%emt 0:01:55]} e6 {[%emt 0:03:09]} 32. g3 {[%emt 0:04:02]} g5 {[%emt 0:03:51]} 33. fxg5 {[%emt 0:01:48]} Kg6 {[%emt 0:01:22]} 34. Bxe4+ {[%emt 0:03:41]} Rxe4 {[%emt 0:00:02]} 35. h4 {[%emt 0:00:12]} Rxe5 {[%emt 0:01:58]} 36. Kf2 {[%emt 0:00:07]} Rb5 {[%emt 0:04:25]} 37. Kf3 {[%emt 0:00:28]} h6 {[%emt 0:07:43]} 38. gxh6 {[%emt 0:02:58]} Kxh6 {[%emt 0:00:17]} 39. g4 {[%emt 0:00:27]} Kg7 {[%emt 0:03:16]} 40. a3 {[%emt 0:00:00]} Kg6 {[%emt 0:00:00]} 41. Kf4 {[%emt 0:01:13]} Kh6 {[%emt 0:04:36]} 42. Ke4 {[%emt 0:03:30]} Kg6 {[%emt 0:11:47]} 43. Rf2 {[%emt 0:01:23]} Rb3 {[%emt 0:13:45]} 44. Ke5 {[%emt 0:02:35]} Rb5+ {[%emt 0:04:41]} 45. Kd6 {[%emt 0:01:03]} Rb6+ {[%emt 0:00:25]} 46. Ke5 {[%emt 0:04:27]} Rb5+ {[%emt 0:00:07]} 47. Kd4 {[%emt 0:00:03]} Rb3 {[%emt 0:07:25]} 48. h5+ {[%emt 0:00:20]} Kg5 {[%emt 0:01:15]} 49. Rxf7 {[%emt 0:00:58]} Kxg4 {[%emt 0:00:17]} 50. h6 {[%emt 0:00:16]} Rxb2 {[%emt 0:00:10]} 51. h7 {[%emt 0:00:33]} Rh2 {[%emt 0:00:06]} 52. Ke5 {[%emt 0:01:11]} Rh6 {[%emt 0:01:06]} 53. Rf4+ {[%emt 0:02:36]} Kg3 {[%emt 0:01:10]} 54. Rxa4 {[%emt 0:04:36]} Rxh7 {[%emt 0:00:08]} 55. Ra8 {[%emt 0:01:01]} Rh1 {[%emt 0:02:46]} 56. Kxe6 {[%emt 0:00:46]} Kf4 {[%emt 0:02:33]} 57. a4 {[%emt 0:10:45]} Ke4 {[%emt 0:00:13]} 58. Rd8 {[%emt 0:06:53]} Rh6+ {[%emt 0:00:30]} 59. Kd7 {[%emt 0:00:24]} Ra6 {[%emt 0:00:08]} 60. Rh8 {[%emt 0:00:44]} Kd5 {[%emt 0:00:20]} 61. Rh4 {[%emt 0:00:40]} Kc5 {[%emt 0:00:38]} 62. Kc7 {[%emt 0:00:22]} Ra7+ {[%emt 0:00:31]} 63. Kb8 {[%emt 0:00:09]} Rg7 {[%emt 0:00:24]} 1/2-1/2

[Event "XIX Najdorf Memorial 2019"]
[Site "Warsaw"]
[Date "2019.07.08"]
[Round "3.12"]
[White "Kopylov, Daniel"]
[Black "Krysztofiak, Marcin"]
[Result "0-1"]
[ECO "B13"]
[WhiteElo "2209"]
[BlackElo "2382"]
[Annotator "NA"]
[PlyCount "52"]
[EventDate "2019.07.06"]
[EventType "swiss"]
[EventCountry "POL"]
[SourceTitle "playchess.com"]
[Source "ChessBase"]
[SourceQuality "1"]
[TimeControl "40/5400+30:1800+30"]

1. e4 {[%emt 0:00:00]} c6 {[%emt 0:00:00]} 2. d4 {[%emt 0:00:05]} d5 {[%emt 0:00:00]} 3. exd5 {[%emt 0:00:31]} cxd5 {[%emt 0:00:00]} 4. c4 {[%emt 0:00:27]} Nf6 {[%emt 0:00:31]} 5. Nc3 {[%emt 0:00:16]} Nc6 {[%emt 0:01:25]} 6. Bg5 {[%emt 0:03:38]} e6 {[%emt 0:02:07]} 7. Nf3 {[%emt 0:01:39]} Be7 {[%emt 0:01:26]} 8. c5 {[%emt 0:01:40]} O-O {[%emt 0:01:19]} 9. Rc1 {[%emt 0:01:12]} h6 {[%emt 0:27:47]} 10. Bh4 {[%emt 0:08:58]} Ne4 {[%emt 0:04:53]} 11. Bxe7 {[%emt 0:02:00]} Qxe7 {[%emt 0:00:13]} 12. Bd3 {[%emt 0:01:26]} Ng5 {[%emt 0:03:56]} 13. Bb1 {[%emt 0:08:56]} Nxf3+ {[%emt 0:17:37]} 14. Qxf3 {[%emt 0:01:42]} Nxd4 {[%emt 0:00:44]} 15. Qd3 {[%emt 0:27:33]} Nf5 {[%emt 0:00:19]} 16. g4 {[%emt 0:04:05]} Qg5 {[%emt 0:00:32]} 17. gxf5 {[%emt 0:00:25]} Qxc1+ {[%emt 0:00:23]} 18. Ke2 {[%emt 0:00:08]} Qxh1 {[%emt 0:10:06]} 19. f6 {[%emt 0:06:09]} g6 {[%emt 0:00:46]} 20. Qg3 {[%emt 0:01:08]} Qc1 {[%emt 0:06:45]} 21. h4 {[%emt 0:00:17]} Kh8 {[%emt 0:03:20]} 22. f4 {[%emt 0:02:01]} e5 {[%emt 0:04:35]} 23. fxe5 {[%emt 0:02:07]} d4 {[%emt 0:01:51]} 24. Bxg6 {[%emt 0:00:29]} Qxb2+ {[%emt 0:02:02]} 25. Kd1 {[%emt 0:00:40]} Qxc3 {[%emt 0:00:29]} 26. Bd3 {[%emt 0:01:44]} Bg4+ {[%emt 0:01:28]} 0-1

[Event "XIX Najdorf Memorial 2019"]
[Site "Warsaw"]
[Date "2019.07.08"]
[Round "3.13"]
[White "Noe, Christopher"]
[Black "Czerw, Dawid"]
[Result "1-0"]
[ECO "D45"]
[WhiteElo "2534"]
[BlackElo "2326"]
[Annotator "ChessBase"]
[PlyCount "55"]
[EventDate "2019.07.06"]
[EventType "swiss"]
[EventCountry "POL"]
[SourceTitle "playchess.com"]
[Source "ChessBase"]
[SourceQuality "1"]
[TimeControl "40/5400+30:1800+30"]

1. d4 {[%emt 0:01:48]} Nf6 {[%emt 0:00:00]} 2. c4 {[%emt 0:00:17]} e6 {[%emt 0:00:00]} 3. Nf3 {[%emt 0:00:10]} d5 {[%emt 0:00:00]} 4. Nc3 {[%emt 0:00:16]} c6 {[%emt 0:00:04]} 5. e3 {[%emt 0:00:29]} a6 {[%emt 0:00:12]} 6. Qc2 {[%emt 0:00:30]} c5 {[%emt 0:00:59]} 7. cxd5 {[%emt 0:02:28]} exd5 {[%emt 0:05:01]} 8. dxc5 {[%emt 0:01:41]} Bxc5 {[%emt 0:01:16]} 9. Be2 {[%emt 0:00:11]} O-O {[%emt 0:08:41]} 10. O-O {[%emt 0:00:35]} Nc6 {[%emt 0:03:46]} 11. Rd1 {[%emt 0:01:50]} Bd6 {[%emt 0:02:44]} 12. b3 {[%emt 0:12:15]} Qe7 {[%emt 0:12:57]} 13. Bb2 {[%emt 0:02:19]} Bg4 {[%emt 0:06:03]} 14. Nxd5 {[%emt 0:08:36]} Nxd5 {[%emt 0:02:08]} 15. Rxd5 {[%emt 0:00:06]} Nb4 {[%emt 0:11:01]} 16. Qc3 {[%emt 0:00:07]} f6 {[%emt 0:00:12]} 17. Rd4 {[%emt 0:04:44]} Bf5 {[%emt 0:09:35]} 18. Bc4+ {[%emt 0:06:44]} Kh8 {[%emt 0:00:51]} 19. Nh4 {[%emt 0:00:07]} Be4 {[%emt 0:08:42]} 20. f3 {[%emt 0:02:04]} Bc2 {[%emt 0:02:31]} 21. a3 {[%emt 0:05:50]} Be5 {[%emt 0:06:33]} 22. axb4 {[%emt 0:01:19]} Bxd4 {[%emt 0:01:32]} 23. exd4 {[%emt 0:00:06]} b5 {[%emt 0:04:06]} 24. Re1 {[%emt 0:01:44]} Qd6 {[%emt 0:01:01]} 25. Be6 {[%emt 0:00:14]} Bg6 {[%emt 0:05:01]} 26. Nxg6+ {[%emt 0:00:13]} hxg6 {[%emt 0:00:02]} 27. f4 {[%emt 0:02:03]} Qxf4 {[%emt 0:01:02]} 28. Re3 {[%emt 0:00:09]} 1-0

[Event "XIX Najdorf Memorial 2019"]
[Site "Warsaw"]
[Date "2019.07.08"]
[Round "3.13"]
[White "Krishna Teja, N."]
[Black "Sowul, Bartosz"]
[Result "0-1"]
[ECO "A56"]
[WhiteElo "2368"]
[BlackElo "2210"]
[Annotator "NA"]
[PlyCount "90"]
[EventDate "2019.07.06"]
[EventType "swiss"]
[EventCountry "POL"]
[SourceTitle "playchess.com"]
[Source "ChessBase"]
[SourceQuality "1"]
[TimeControl "40/5400+30:1800+30"]

1. d4 {[%emt 0:00:00]} Nf6 {[%emt 0:00:00]} 2. c4 {[%emt 0:00:00]} c5 {[%emt 0:00:00]} 3. Nf3 {[%emt 0:00:00]} g6 {[%emt 0:00:39]} 4. d5 {[%emt 0:00:55]} b5 {[%emt 0:12:03]} 5. cxb5 {[%emt 0:00:03]} a6 {[%emt 0:00:09]} 6. b6 {[%emt 0:00:04]} Bg7 {[%emt 0:00:22]} 7. Nc3 {[%emt 0:00:03]} O-O {[%emt 0:01:07]} 8. e4 {[%emt 0:01:11]} d6 {[%emt 0:02:01]} 9. a4 {[%emt 0:00:21]} a5 {[%emt 0:00:56]} 10. Bb5 {[%emt 0:03:36]} Nbd7 {[%emt 0:02:27]} 11. O-O {[%emt 0:00:29]} Nxb6 {[%emt 0:00:10]} 12. e5 {[%emt 0:04:15]} Ng4 {[%emt 0:10:20]} 13. exd6 {[%emt 0:00:52]} exd6 {[%emt 0:00:35]} 14. Bc6 {[%emt 0:01:24]} Ra7 {[%emt 0:04:21]} 15. Nb5 {[%emt 0:01:13]} Re7 {[%emt 0:02:13]} 16. h3 {[%emt 0:08:13]} Nf6 {[%emt 0:07:08]} 17. Bf4 {[%emt 0:04:55]} Ne4 {[%emt 0:09:47]} 18. Qc2 {[%emt 0:00:23]} Bf5 {[%emt 0:03:11]} 19. Nh4 {[%emt 0:03:03]} Bd7 {[%emt 0:20:30]} 20. f3 {[%emt 0:01:20]} Nf6 {[%emt 0:09:18]} 21. Rfd1 {[%emt 0:03:38]} Rfe8 {[%emt 0:04:43]} 22. Nxd6 {[%emt 0:08:16]} Re2 {[%emt 0:01:22]} 23. Rd2 {[%emt 0:00:03]} Re1+ {[%emt 0:03:04]} 24. Rxe1 {[%emt 0:01:07]} Rxe1+ {[%emt 0:00:07]} 25. Kf2 {[%emt 0:03:29]} Rh1 {[%emt 0:02:49]} 26. Nb7 {[%emt 0:16:17]} Qe7 {[%emt 0:01:16]} 27. Re2 {[%emt 0:04:22]} Ne4+ {[%emt 0:00:56]} 28. Qxe4 {[%emt 0:00:07]} Qxh4+ {[%emt 0:00:16]} 29. Bg3 {[%emt 0:01:01]} Bd4+ {[%emt 0:01:24]} 30. Re3 {[%emt 0:00:02]} Qg5 {[%emt 0:01:02]} 31. f4 {[%emt 0:00:44]} Qh5 {[%emt 0:00:35]} 32. Bxd7 {[%emt 0:02:08]} Qd1 {[%emt 0:00:20]} 33. Bb5 {[%emt 0:00:39]} c4 {[%emt 0:00:30]} 34. Bh4 {[%emt 0:02:10]} Qe1+ {[%emt 0:00:18]} 35. Kf3 {[%emt 0:00:02]} Rf1+ {[%emt 0:00:29]} 36. Kg4 {[%emt 0:00:01]} f5+ {[%emt 0:00:22]} 37. Kg5 {[%emt 0:00:04]} Bf6+ {[%emt 0:00:27]} 38. Kxf6 {[%emt 0:00:14]} Qxh4+ {[%emt 0:00:06]} 39. Ke6 {[%emt 0:00:15]} fxe4 {[%emt 0:00:14]} 40. g3 {[%emt 0:00:00]} Qh5 {[%emt 0:00:00]} 41. Bc6 {[%emt 0:02:58]} Rd1 {[%emt 0:11:11]} 42. g4 {[%emt 0:03:20]} Qh6 {[%emt 0:01:13]} 43. Rxe4 {[%emt 0:02:05]} g5+ {[%emt 0:03:18]} 44. Ke5 {[%emt 0:00:03]} Qg7+ {[%emt 0:00:43]} 45. Kf5 {[%emt 0:00:18]} Qf7+ {[%emt 0:00:20]} 0-1

[Event "XIX Najdorf Memorial 2019"]
[Site "Warsaw"]
[Date "2019.07.08"]
[Round "3.14"]
[White "Ali Marandi, Cemil Can"]
[Black "Deszczynski, Adam"]
[Result "1/2-1/2"]
[ECO "D00"]
[WhiteElo "2527"]
[BlackElo "2304"]
[Annotator "ChessBase"]
[PlyCount "54"]
[EventDate "2019.07.06"]
[EventType "swiss"]
[EventCountry "POL"]
[SourceTitle "playchess.com"]
[Source "ChessBase"]
[SourceQuality "1"]
[TimeControl "40/5400+30:1800+30"]

1. d4 {[%emt 0:00:00]} d5 {[%emt 0:01:46]} 2. Bf4 {[%emt 0:00:00]} Nf6 {[%emt 0:02:10]} 3. e3 {[%emt 0:00:00]} c5 {[%emt 0:02:26]} 4. c3 {[%emt 0:00:09]} Nc6 {[%emt 0:00:57]} 5. Nd2 {[%emt 0:00:10]} Bf5 {[%emt 0:02:45]} 6. Qb3 {[%emt 0:00:36]} Qd7 {[%emt 0:03:21]} 7. Ngf3 {[%emt 0:03:34]} c4 {[%emt 0:05:29]} 8. Qd1 {[%emt 0:00:17]} h6 {[%emt 0:03:50]} 9. b3 {[%emt 0:06:54]} cxb3 {[%emt 0:14:33]} 10. axb3 {[%emt 0:00:16]} e6 {[%emt 0:03:11]} 11. Bb5 {[%emt 0:06:36]} Bd6 {[%emt 0:12:41]} 12. Ne5 {[%emt 0:01:12]} Qc7 {[%emt 0:03:47]} 13. g4 {[%emt 0:29:07]} Bh7 {[%emt 0:01:33]} 14. h4 {[%emt 0:06:14]} Nd7 {[%emt 0:00:54]} 15. Nxd7 {[%emt 0:00:24]} Bxf4 {[%emt 0:04:09]} 16. exf4 {[%emt 0:01:03]} Kxd7 {[%emt 0:02:46]} 17. Qf3 {[%emt 0:01:43]} a6 {[%emt 0:07:21]} 18. Be2 {[%emt 0:00:15]} Rac8 {[%emt 0:10:59]} 19. h5 {[%emt 0:00:54]} Qd6 {[%emt 0:04:20]} 20. Qe3 {[%emt 0:04:43]} f6 {[%emt 0:00:26]} 21. O-O {[%emt 0:01:45]} g6 {[%emt 0:02:11]} 22. b4 {[%emt 0:07:05]} gxh5 {[%emt 0:04:04]} 23. gxh5 {[%emt 0:00:14]} Rcg8+ {[%emt 0:02:04]} 24. Kh1 {[%emt 0:00:06]} Ne7 {[%emt 0:01:10]} 25. Rg1 {[%emt 0:07:21]} Nf5 {[%emt 0:00:19]} 26. Qf3 {[%emt 0:00:01]} Nh4 {[%emt 0:00:55]} 27. Qe3 {[%emt 0:00:01]} Nf5 {[%emt 0:00:42]} 1/2-1/2

[Event "XIX Najdorf Memorial 2019"]
[Site "Warsaw"]
[Date "2019.07.08"]
[Round "3.14"]
[White "Malek, Daniel"]
[Black "Budrewicz, Krzysztof"]
[Result "0-1"]
[ECO "E73"]
[WhiteElo "2362"]
[BlackElo "2188"]
[Annotator "NA"]
[PlyCount "102"]
[EventDate "2019.07.06"]
[EventType "swiss"]
[EventCountry "POL"]
[SourceTitle "playchess.com"]
[Source "ChessBase"]
[SourceQuality "1"]
[TimeControl "40/5400+30:1800+30"]

1. d4 {[%emt 0:00:00]} g6 {[%emt 0:00:00]} 2. c4 {[%emt 0:00:00]} Bg7 {[%emt 0:00:00]} 3. e4 {[%emt 0:00:00]} d6 {[%emt 0:00:08]} 4. Nc3 {[%emt 0:00:00]} Nf6 {[%emt 0:00:35]} 5. Be2 {[%emt 0:00:09]} O-O {[%emt 0:00:22]} 6. Be3 {[%emt 0:00:07]} Na6 {[%emt 0:01:08]} 7. Nf3 {[%emt 0:00:24]} e5 {[%emt 0:00:31]} 8. O-O {[%emt 0:00:09]} Ng4 {[%emt 0:15:33]} 9. Bg5 {[%emt 0:00:09]} Qe8 {[%emt 0:00:05]} 10. dxe5 {[%emt 0:01:01]} dxe5 {[%emt 0:02:20]} 11. Qc1 {[%emt 0:01:53]} c6 {[%emt 0:03:20]} 12. h3 {[%emt 0:00:38]} Nf6 {[%emt 0:00:07]} 13. Rd1 {[%emt 0:02:45]} Nc5 {[%emt 0:01:42]} 14. Qc2 {[%emt 0:01:52]} Ne6 {[%emt 0:04:26]} 15. Be3 {[%emt 0:01:08]} Nh5 {[%emt 0:00:36]} 16. Rab1 {[%emt 0:21:20]} Qe7 {[%emt 0:03:31]} 17. b4 {[%emt 0:01:58]} Nhf4 {[%emt 0:02:47]} 18. Bf1 {[%emt 0:01:15]} Qf6 {[%emt 0:03:12]} 19. Ne1 {[%emt 0:15:16]} Nd4 {[%emt 0:05:18]} 20. Bxd4 {[%emt 0:01:39]} exd4 {[%emt 0:00:06]} 21. Ne2 {[%emt 0:00:07]} Nxe2+ {[%emt 0:03:15]} 22. Bxe2 {[%emt 0:02:27]} a5 {[%emt 0:00:11]} 23. a3 {[%emt 0:04:34]} axb4 {[%emt 0:00:27]} 24. axb4 {[%emt 0:00:02]} Re8 {[%emt 0:01:20]} 25. Bd3 {[%emt 0:13:08]} Be6 {[%emt 0:11:05]} 26. Ra1 {[%emt 0:00:15]} Qf4 {[%emt 0:04:09]} 27. g3 {[%emt 0:09:20]} Qd6 {[%emt 0:04:17]} 28. c5 {[%emt 0:02:25]} Qc7 {[%emt 0:00:48]} 29. Kg2 {[%emt 0:00:55]} Qd7 {[%emt 0:03:01]} 30. h4 {[%emt 0:00:29]} Bh3+ {[%emt 0:00:39]} 31. Kh2 {[%emt 0:00:19]} Bg4 {[%emt 0:00:04]} 32. f3 {[%emt 0:00:59]} Be6 {[%emt 0:00:04]} 33. f4 {[%emt 0:02:50]} Bg4 {[%emt 0:01:15]} 34. Rdb1 {[%emt 0:00:05]} Qc7 {[%emt 0:07:10]} 35. Kg2 {[%emt 0:00:46]} Rad8 {[%emt 0:05:57]} 36. Nf3 {[%emt 0:01:02]} Bc8 {[%emt 0:00:08]} 37. Nd2 {[%emt 0:01:16]} b5 {[%emt 0:03:55]} 38. cxb6 {[%emt 0:08:15]} Qxb6 {[%emt 0:00:04]} 39. Nc4 {[%emt 0:00:06]} Qc7 {[%emt 0:00:42]} 40. Na5 {[%emt 0:00:00]} Qd7 {[%emt 0:00:00]} 41. Kf2 {[%emt 0:02:41]} Ba6 {[%emt 0:13:01]} 42. Bxa6 {[%emt 0:07:16]} d3 {[%emt 0:00:04]} 43. Qxc6 {[%emt 0:00:09]} Qa7+ {[%emt 0:02:13]} 44. Kf3 {[%emt 0:00:13]} Bxa1 {[%emt 0:00:13]} 45. Rxa1 {[%emt 0:00:08]} Re6 {[%emt 0:00:36]} 46. Qc4 {[%emt 0:06:18]} Rxa6 {[%emt 0:00:44]} 47. Rd1 {[%emt 0:00:31]} d2 {[%emt 0:03:37]} 48. Ke2 {[%emt 0:09:23]} Qd7 {[%emt 0:00:14]} 49. f5 {[%emt 0:00:56]} Rd6 {[%emt 0:01:11]} 50. b5 {[%emt 0:02:48]} Rd4 {[%emt 0:00:26]} 51. Qc6 {[%emt 0:00:30]} Qe7 {[%emt 0:00:42]} 0-1

[Event "XIX Najdorf Memorial 2019"]
[Site "Warsaw"]
[Date "2019.07.08"]
[Round "3.15"]
[White "Mosesov, Danylo"]
[Black "Lisowski, Krzysztof"]
[Result "1-0"]
[ECO "B34"]
[WhiteElo "2353"]
[BlackElo "2187"]
[Annotator "NA"]
[PlyCount "69"]
[EventDate "2019.07.06"]
[EventType "swiss"]
[EventCountry "POL"]
[SourceTitle "playchess.com"]
[Source "ChessBase"]
[SourceQuality "1"]
[TimeControl "40/5400+30:1800+30"]

1. e4 {[%emt 0:01:27]} c5 {[%emt 0:07:24]} 2. Nf3 {[%emt 0:00:09]} Nc6 {[%emt 0:00:09]} 3. d4 cxd4 {[%emt 0:00:40]} 4. Nxd4 {[%emt 0:00:15]} Nf6 {[%emt 0:00:16]} 5. Nc3 {[%emt 0:00:06]} e5 {[%emt 0:00:05]} 6. Ndb5 {[%emt 0:00:02]} d6 {[%emt 0:00:05]} 7. Nd5 {[%emt 0:00:02]} Nxd5 {[%emt 0:00:05]} 8. exd5 {[%emt 0:00:03]} Ne7 {[%emt 0:00:28]} 9. c4 {[%emt 0:00:05]} Ng6 {[%emt 0:03:02]} 10. Qa4 {[%emt 0:01:18]} Bd7 {[%emt 0:00:19]} 11. Qb4 {[%emt 0:00:04]} Qb8 {[%emt 0:00:50]} 12. h4 {[%emt 0:02:39]} h5 {[%emt 0:00:26]} 13. Be3 {[%emt 0:01:10]} a6 {[%emt 0:04:06]} 14. Nc3 {[%emt 0:01:39]} Be7 {[%emt 0:00:27]} 15. g3 {[%emt 0:01:24]} f5 {[%emt 0:06:26]} 16. Be2 {[%emt 0:03:33]} Qc7 {[%emt 0:25:53]} 17. O-O-O {[%emt 0:07:25]} Rc8 {[%emt 0:12:25]} 18. Bb6 {[%emt 0:03:56]} Qb8 {[%emt 0:00:14]} 19. Kb1 {[%emt 0:00:13]} e4 {[%emt 0:02:01]} 20. Bd4 {[%emt 0:05:33]} Kf7 {[%emt 0:02:29]} 21. f3 {[%emt 0:06:28]} exf3 {[%emt 0:03:03]} 22. Bxf3 {[%emt 0:00:08]} Bf6 {[%emt 0:01:07]} 23. Bxf6 {[%emt 0:05:43]} Kxf6 {[%emt 0:00:08]} 24. Rhf1 {[%emt 0:00:15]} Ne5 {[%emt 0:01:05]} 25. Be2 {[%emt 0:00:07]} Kg6 {[%emt 0:02:29]} 26. Qb6 {[%emt 0:23:04]} Rc5 {[%emt 0:07:21]} 27. Rd4 {[%emt 0:02:41]} Rhc8 {[%emt 0:06:16]} 28. Qb3 {[%emt 0:04:08]} Qc7 {[%emt 0:01:06]} 29. Rc1 {[%emt 0:09:43]} Nxc4 {[%emt 0:00:47]} 30. Bxc4 {[%emt 0:01:29]} Rxc4 {[%emt 0:00:08]} 31. Rxc4 {[%emt 0:00:11]} Qxc4 {[%emt 0:00:10]} 32. Qxb7 {[%emt 0:00:10]} Bb5 {[%emt 0:13:45]} 33. Qe7 {[%emt 0:01:04]} Qd3+ {[%emt 0:00:10]} 34. Ka1 {[%emt 0:00:04]} Qxd5 35. Qg5+ {[%emt 0:00:26]} 1-0

[Event "XIX Najdorf Memorial 2019"]
[Site "Warsaw"]
[Date "2019.07.08"]
[Round "3.15"]
[White "Kucza, Karol"]
[Black "Shyam, Sundar M."]
[Result "0-1"]
[ECO "B69"]
[WhiteElo "2315"]
[BlackElo "2520"]
[Annotator "ChessBase"]
[PlyCount "72"]
[EventDate "2019.07.06"]
[EventType "swiss"]
[EventCountry "POL"]
[SourceTitle "playchess.com"]
[Source "ChessBase"]
[SourceQuality "1"]
[TimeControl "40/5400+30:1800+30"]

1. e4 {[%emt 0:00:00]} c5 {[%emt 0:00:44]} 2. Nf3 {[%emt 0:00:00]} d6 {[%emt 0:00:06]} 3. d4 {[%emt 0:00:00]} cxd4 {[%emt 0:00:24]} 4. Nxd4 {[%emt 0:00:00]} Nf6 {[%emt 0:00:02]} 5. Nc3 {[%emt 0:00:08]} Nc6 {[%emt 0:00:25]} 6. Bg5 {[%emt 0:00:10]} e6 {[%emt 0:00:04]} 7. Qd2 {[%emt 0:00:08]} Be7 {[%emt 0:00:03]} 8. O-O-O {[%emt 0:01:12]} a6 {[%emt 0:00:04]} 9. f4 {[%emt 0:03:40]} Bd7 {[%emt 0:00:05]} 10. Nf3 {[%emt 0:03:32]} b5 {[%emt 0:00:07]} 11. Bxf6 {[%emt 0:11:42]} gxf6 {[%emt 0:00:17]} 12. Bd3 {[%emt 0:00:37]} b4 {[%emt 0:06:16]} 13. Ne2 {[%emt 0:01:46]} Qb6 {[%emt 0:00:16]} 14. Kb1 {[%emt 0:01:30]} a5 {[%emt 0:02:50]} 15. f5 {[%emt 0:03:23]} Qc5 {[%emt 0:04:12]} 16. Nf4 {[%emt 0:10:06]} a4 {[%emt 0:15:28]} 17. fxe6 {[%emt 0:02:09]} fxe6 {[%emt 0:04:06]} 18. Qe2 {[%emt 0:00:17]} Ne5 {[%emt 0:07:29]} 19. Nxe5 {[%emt 0:02:11]} Qxe5 {[%emt 0:00:07]} 20. Rhf1 {[%emt 0:02:14]} a3 {[%emt 0:02:40]} 21. Qh5+ {[%emt 0:00:39]} Kd8 {[%emt 0:24:34]} 22. Qxe5 {[%emt 0:00:22]} fxe5 {[%emt 0:00:02]} 23. Nh5 {[%emt 0:02:27]} Bg5 {[%emt 0:08:36]} 24. b3 {[%emt 0:21:21]} Ke7 {[%emt 0:00:55]} 25. Ng3 {[%emt 0:00:06]} h5 {[%emt 0:05:09]} 26. Ne2 {[%emt 0:00:06]} Rac8 {[%emt 0:05:06]} 27. Ba6 {[%emt 0:02:50]} Rcg8 {[%emt 0:02:18]} 28. c3 {[%emt 0:06:09]} Bc6 {[%emt 0:00:04]} 29. Bd3 {[%emt 0:00:15]} bxc3 {[%emt 0:01:37]} 30. Nxc3 {[%emt 0:00:10]} Be3 {[%emt 0:00:07]} 31. g3 {[%emt 0:00:20]} h4 {[%emt 0:00:04]} 32. Rf3 {[%emt 0:01:15]} Bd4 {[%emt 0:00:35]} 33. Ne2 {[%emt 0:00:08]} Bc5 {[%emt 0:02:03]} 34. Rc1 {[%emt 0:01:56]} hxg3 {[%emt 0:00:12]} 35. hxg3 {[%emt 0:00:18]} Rh2 {[%emt 0:00:11]} 36. b4 {[%emt 0:00:25]} Ra8 0-1